Workbook

Sheet Einfuehrung
C4: Modul M 04: ROI-/WACC-Modell
C6: 1. Einführung
C7: Das Du-Pont-Kennzahlensystem ist ein weltweit bekanntes System von Unternehmenskennzahlen, welches
C8: sowohl im Rahmen der Ex-post-Analyse (rückschauende Analyse) als auch im Rahmen der Ex-ante-Analyse
C9: (Erklärung zukünftiger Entwicklungen) genutzt wird.
C10: Im Zentrum dieses Kennzahlensystems steht die Kennzahl "ROI" (Return on Investment), die inhaltlich der
C11: Kennzahl „Gesamtkapitalrentabilität“ (Symbol: gkr [% p. a.]) entspricht.
C12: Mit der Bildung und Analyse der Kennzahl ROI wird darauf orientiert, einen höchstmöglichen Gewinn je
C13: eingesetzter Kapitaleinheit zu erreichen.
C14: In der obersten Ebene wird die Kennzahl ROI durch die multiplikative Verknüpfung der Kennzahl "Umsatz-
C15: rentabilität“ (Symbol: ur [%]) und der Kennzahl "Umschlagszahl des Kapitals“ (Symbol: uz [-/a] gebildet.
C30: Dieses Kennzahlensystem ist - im Hinblick auf einen Erkenntnisgewinn - erst dann von praktischem Interesse,
C31: wenn auf der Grundlage einer detaillierteren Modelldarstellung interessierende Ursache-Wirkung-Zusammen-
C32: hänge "durchgespielt" (simuliert) werden können, um anhand der Simulationsergebnisse Schlussfolgerungen
C33: für die Steuerung des Geschäftsbetriebes eines Unternehmens abzuleiten.
C34: Unter diesem Aspekt wird die obige Darstellung des Du-Pont-Kennzahlensystems in ein detaillierteres Block-
C35: schaltbild umgesetzt und dabei zugleich rechenfähig gemacht.

Sheet ROI_Modell_1
C4: 2. Blockschaltbild
C5: Aufgabe 1: | D5: Ermitteln Sie die fehlenden Werte, indem Sie die in die jeweiligen Zellen die Berechnungsformel einsetzen!
D6: Beginnen Sie mit der Ermittlung der Leistung L !
C8: Änderung der Werte
G9: kp = | H9: =I9/10 -> 3.5 | I9: 35
M11: m = | N11: =m_01/100 -> 1 | O11: 100
C13: Kapital C
C14: 1200 | K14: Leistung L
C15: [1000 EUR]
G19: ks = | H19: 90
H20: Kostensatz | O20: Umsatz U
L22: Kosten K | M22: - | N22: +
F28: Umschlagszahl | O28: Gewinn G
G30: uz = | J30: [-/a]
F34: Umsatzrentabilität
G36: ur = | J36: [%]
G41: ROI = | J41: [% p. a.] | K41: d = | M41: Jahre
G44: Ziel: | H44: 40 | I44: [% p. a.] | K44: Abweichung = | N44: % p. a.

Sheet ROI_Modell_2
C4: 3. Simulation
C6: Aufgabe 2:
C7: Die im Modell eingetragenen Daten können in bestimmten Grenzen vaiiert werden.
C8: Anliegen Ziel dieser Demo-Lösung ist es, zu zeigen, wie sich die Daten der einzelnen Kennzahlen unter dem Einluss zufallsbedingter
C9: Schwankungen der Marktrealisierung m innerhalb von 10 Perioden ändern würden.
C10: Starten Sie die Berechnungen und studieren Sie sodann die Simulationstabelle (Klick "Simulation Auswertung")!
C12: Änderung der Werte | H12: =I12/10 -> 1.3 | I12: 13 | J12: % Veränderung | M12: og_m | N12: =O12/100 -> 1.06 | O12: 106
G13: kp = | H13: =I13/10 -> 3 | I13: 30 | M13: ug_m | N13: =O13/100 -> 0.94 | O13: 94
M15: m = | N15: 0.9492339337
C17: Kapital
C18: 1200 | K18: Leistung L
C19: [1000 EUR] | K19: 4096.349037
G23: ks = | H23: 94
H24: =I24/10 -> 1.5 | I24: 15 | N24: 3888.39351 | O24: Umsatz U
L26: Kosten K | M26: - | N26: +
L27: 3310.450611
F32: Umschlagszahl | N32: 577.942899 | O32: Gewinn G
H33: 3888.39351
G34: uz = | I34: 3.240327925 | J34: [-/a]
H35: =C0 -> 1200
F38: Umsatzrentabilität
H39: 577.942899
G40: ur = | I40: 14.86328216 | J40: [%]
H41: 3888.39351
H44: 577.942899
G45: ROI = | I45: 48.16190825 | J45: [% p. a.] | K45: 2.076329689 | L45: Jahre
H46: =C0 -> 1200
G48: Ziel: | H48: 40 | I48: [% p. a.] | K48: Abweichung = | M48: 8.161908252 | N48: % p. a.

Sheet ROI_Hierarchie_A
C4: 4. Hierarchisches ROI-Modell | I4: Zielgröße | K4: ROI | M4: %/a
K5: d | M5: a
C6: Führen Sie mit Bezug auf die angegebenen Daten die
C7: Berechnung der ROI-Modell-Parameter durch!
G8: ur | L8: * | P8: uz
E11: G | H11: / | K11: U | L11: =U0 -> 0 | Q11: / | S11: C
J13: Fixkosten | L13: 380
C14: DB | G14: FKK | J14: Σ | L14: 92 | Q14: AV | T14: + | V14: UV
L15: 75
F16: + | H16: Fremdkapitalzinsen | L16: 30 | Q16: Σ | V16: Σ
O17: Anlagevermögen | U17: Umlaufvermögen
C19: Position | D19: Hauptprodukte | L19: Summe | O19: SA | P19: 230 | V19: Vorr | W19: 280
D20: A | F20: B | H20: C | J20: D | L20: [1000 EUR]
C21: Preis | D21: 290 | F21: 120 | H21: 460 | J21: 50 | O21: FinA | P21: 120 | V21: Ford | W21: 120
C22: Materialkosten | D22: 94 | F22: 55 | H22: 241 | J22: 20
C23: Löhne | D23: 60 | F23: 35 | H23: 120 | J23: 25 | O23: immA | P23: 19 | V23: liqM | W23: 50
C24: direkte Kosten
C25: db
C26: Absatzmenge | D26: 4800 | F26: 3100 | H26: 800 | J26: 5200 | V26: Anz | W26: 8
C27: DB
C28: Umsatz

Sheet WACC_1
C4: 5. WACC-Modell - Einführung
C6: Für die Steuerung der Unternehmensentwicklung gewinnt das Ziel "Steigerung des Eigenkapitalwertes" immer mehr
C7: an Bedeutung.
C8: Darauf muss sich auch das Unternehmens-Controlling einstellen, und zwar nicht nur bei kapitalmarktorientierten
C9: Unternehmen, sondern auch bei nicht börsennotierten Unternehmen des Mittelstandes.
C11: Investoren stellen nur dann finanzielle Mittel für Unternehmen bereit, wenn in absehbarer Zeit eine Rendite erwartet
C12: werden kann, die mindestens der Rendite aus einer alternativen Finanzanlage entspricht.
C14: Über die Ermittlung eines Kapitalkostensatzes (Cost of capital) wird versucht, diesen Mindestverzinsungsanspruch
C15: deutlich zu machen und in das Controlling einer wertorientierten Unternehmenssteuerung einfließen zu lassen.
C16: (Siehe auch: WIEHLE, U. u. a.: 100 IFRS Kennzahlen. Cometis AG, Wiesbaden 2005).
C18: Der Kapitalkostensatz wird dabei als gewichteter Gesamtkapitalkostensatz WACC (Weighted Average Cost of Capital)
C19: bestimmt, so dass die Renditeforderungen aller Gruppen von Kapitalgebern Berücksichtigung finden.
C20: Berechnung:

Sheet WACC_2
C4: 6. Berechnungsformeln im Einzelnen
C6: a) Eigenkapitalkostensatz
C7: Der Einsatz von Eigenkapitel im Unternehmensprozess verursacht i. d. R. keine direkten Kosten. Um dennoch die Kapitalbindung
C8: der durch Eigenkapital finanzierten Vermögenswerte kalkulatorisch zu bewerten, wird ein Eigenkapitalkostensatz (Cost rate of
C9: equity) bestimmt, der zum Ausdruck bringt, welche Mindestrendite erzielt worden wäre, wenn mit gleichem Kapital andere
C10: Investitionen getätigt worden wären:
C11: Eigenkapitalkostensatz sEK = risikofreier Zinssatz i + (Marktrendite ./. risikofreier Zinssatz) * β.
C12: Bezugsbasis für den risikofreien Zinssatz i [% p. a.] ist i. d. R. der Ertragszinssatz bei langfristigen Staatsanleihen.
C13: Der Ausdruck "(Marktrendite ./. risikofreier Zinssatz) * β" wird aus Marktrisikoprämie r bezeichnet.
C14: Diese Größe soll die erwartete Zusatzrendite repräsentieren, die durch Investitionen in andere Anlageformen, z. B. in Aktien, zu
C15: erzielen wäre.
C16: Der Faktor β repräsentiert die Schwankungsintensität (= Volatilität) einer Aktie zu einem Index während eines Zeitraums von -
C17: beispielsweise - 200 Tagen in der Vergangenheit.
C18: Liegt der Faktor Beta zum Beispiel bei 0,9, dann bedeutet dies, das sich der Wert der Aktie im betrachteten Zeitraum um 9 %
C19: erhöht, sofern der Index um 10 % steigt.
C21: b) Fremdkapitalkostensatz
C22: Ausgangspunkt ist wiederum der risikofreie Zinssatz i [% p. a.], bezogen auf die Rendite aus langfristigen Staatsanleihen.
C23: Hinzu kommt ein Risikozuschlag r [% p. a.] für Unternehmensanleihen (Corporate bond spread), der aus dem Rating des betref-
C24: fenden Unternehmens ableitet wird und der sich in Abhängigkeit vom Marktumfeld täglich ändert:
C25: Fremdkapitalkostensatz sFK = (risikofreier Zinssatz i + Risikoprämie r) * (1 – Steuerquote s).
C26: Da sich Fremdkapitalkosten steuermindernd auswirken, muss dies entsprechend durch den Faktor (1 – Steuerquote s) be-
C27: rücksichtigt werden.
C28: Die Steuerquote s wird dabei in der Regel nach der Beziehung
D29: Steuerquote s = Ertragsteuern [EUR] / EBIT [EUR]
C31: Die Kennzahl EBIT ist der Unternehmensgewinn vor Zinsen und Steuern (EBIT = Earnings before Interests and Taxes).
C33: Problem:
C35: Die Berechnung der Kennzahl WACC erscheint recht kompliziert zu sein, da die Zusammenhänge zwischen den hier aufgeführten
C36: einzelnen Größen nicht transparent ist.
C37: Hinzu kommt, dass für Unternehmensentscheidungen "Was-wäre-wenn …" - Rechnungen von Interesse wären, um sofort zu
C38: erkennen, welchen Einfluss eine Änderung des Wertes einer der vielen Modellgrößen auf die Kennzahl WACC hat.
C40: Hier hilft nur eine wirtschaftskybernetische Modelldarstellung weiter, indem zunächst der Zusammenhang zwischen den
C41: Modellgrößen in einem Signalflussdiagramm transparent gemacht wird!

Sheet WACC_Modell_A
C4: 3. Signalflussdiagramm zum WACC-Modell
C6: Ein wirtschaftskybernetisches Signalflussdiagramm ist eine Darstellung von mathematischen Berechnungen unter
C7: Nutzung grafischer Ausdrucksmittel:
C8: Die Modellgrößen werden durch Pfeile repräsentiert und für die mathematischen Berechnungen werden entsprechende
C9: Symbole genutzt.
C11: Aufgabe:
C12: Im nachstehend skizzierten Signalflussdiagramm sind Beispiel-Daten aufgeführt.
C13: Ihre Aufgabe besteht darin, die Berechnungen zu vervollständigen und den Zielwert für die Kennzahl WACC zu
C14: ermitteln!
C15: Legen Sie als Erstes den Wert für das im Unternehmensprozess einzusetzende Kapital C fest. Den vorgegebenen
C16: Zahlwert können Sie über das Drehfeld ändern.
C17: Legen Sie sodann fest, wie groß der prozentuale Anteil an Eigenkapital aufgebracht werden soll. Den vorgegebenen
C18: Zahlwert können Sie über das Drehfeld ändern. Danach sind die absoluten Werte für EK und FK zu ermitteln!
C19: Alle weiteren Berechnungen sind gemäß den angegebenen Formeln durchzuführen.
C21: Signalflussdiagramm:
H22: - | I22: +
I26: %
D27: Risikofreier Zinssatz [%] | E27: 1.5
J28: Beta
D29: Marktrisikoprämie [%] | J29: 0.9
H32: WACC
D35: Eigenkapitalkostensatz
G39: Eigenkapital EK | M39: Markt- | O39: 5
D40: Eigenkapitalkosten [%] | H40: Anteil EK [%] | M40: rendite [%]
G41: [1000 EUR] | K41: Steuerung
H42: 60
G44: Kapital C
D45: WACC = | F45: % | G45: =40000+H46 -> 50000
G46: [1000 EUR] | H46: 10000 | O46: Umsatz
M47: Markt
D49: Fremdkapitalkosten [%] | H49: [1000 EUR]
G50: Zinstragendes Fremdkapital FK
D53: Fremdkapitalkostensatz
D56: Risikozuschlag für Unternehmensanleihen | E56: 0.3
D59: Steuerquote | E59: 0.3

Sheet WACC_Modell_L (hidden)
C4: 3. Signalflussdiagramm zum WACC-Kennzahlensystem (mit Zahlenbeispiel)
C6: In dieser Musterlösung können die Werte aller Modellparameter (über "Drehfelder") geändert werden.
C7: Dies ermöglicht "Was-wäre-wenn…"-Berechnungen im Sinne "Ändere den Wert e i n e r Größe und verfolge, was passiert!"
C8: Zugleich werden damit Sensivitätsanalysen ("Empfindlichkeitsanalysen") ermöglicht:
C9: "Welche Werteänderung bei welchem Modellparameter führt zu welcher Werteänderung der Zielgröße WACC?"
C12: Signalflußdiagramm
H13: - | I13: +
H17: =Marktrendite-Rf_Zinssatz -> 3.5 | I17: %
D18: Risikofreier Zinssatz [%] | E18: =F18/100 -> 1.5 | F18: 150
J19: Beta
D20: Marktrisikoprämie [%] | E20: =Saldo_Rendite*Beta -> 3.15 | J20: =K20/100 -> 0.9 | K20: 90
I22: Management
H23: WACC
D26: Eigenkapitalkostensatz
E27: =Rf_Zinssatz+Marktrisikopraemie -> 4.65
G30: Eigenkapital EK | M30: Markt- | O30: =P30/10 -> 5 | P30: 50
D31: Eigenkapitalkosten [%] | E31: =EK_WACC*EK_Satz/K_WACC -> 2.79 | G31: =G36*H33/100 -> 30000 | H31: Anteil EK [%] | M31: rendite [%]
G32: [1000 EUR] | K32: Steuerung
H33: 60
G35: Kapital C
D36: WACC = | E36: =EK_Kosten+FK_Kosten -> 3.294 | F36: % | G36: =40000+H37 -> 50000
G37: [1000 EUR] | H37: 10000 | O37: Umsatz
M38: Markt
I39: Unternehmen
D40: Fremdkapitalkosten [%] | E40: =FK_WACC*FK_Kostensatz/K_WACC -> 0.504 | G40: =G36-G31 -> 20000 | H40: [1000 EUR]
G41: Zinstragendes Fremdkapital FK
D44: Fremdkapitalkostensatz | E44: =(Rf_Zinssatz+R_Zuschlag)*(1-Steuerquote) -> 1.26
D47: Risikozuschlag für Unternehmensanleihen | E47: =F47/100 -> 0.3 | F47: 30
D50: Steuerquote | E50: =F50/100 -> 0.3 | F50: 30

Sheet ROI_Hierarchie_L (hidden)
I4: Zielgröße | K4: ROI | L4: =ur*uz_0 -> 37.39237392 | M4: [%/a]
K5: d | L5: =100/ROI -> 2.674342105 | M5: [a}
G8: ur | H8: =G*100/U -> 12.7090301 | L8: * | P8: uz | Q8: =U/C_1 -> 2.942189422
E11: G | F11: =DB-Kf+FKZ -> 304 | H11: / | K11: U | L11: =U0 -> 2392 | Q11: / | S11: C | T11: =AV+UV -> 813
J13: Fixkosten | L13: 380
C14: DB | D14: =DB0 -> 851 | G14: Kf | H14: =SUM(L13:L16) -> 577 | J14: Σ | L14: 92 | Q14: AV | R14: =P19+P21+P23 -> 371 | T14: + | V14: UV | W14: =W19+W21+W23-W26 -> 442
L15: 75
F16: + | H16: Fremdkapitalzinsen | L16: 30 | Q16: Σ | V16: Σ
O17: Anlagevermögen | U17: Umlaufvermögen
C19: Position | D19: Hauptprodukte | L19: Summe | O19: SA | P19: 232 | V19: Vorr | W19: 280
D20: A | F20: B | H20: C | J20: D | L20: [1000 EUR]
C21: Preis | D21: 290 | F21: 120 | H21: 460 | J21: 50 | O21: FinA | P21: 120 | V21: Ford | W21: 120
C22: Materialkosten | D22: 94 | F22: 55 | H22: 241 | J22: 20
C23: Löhne | D23: 60 | F23: 35 | H23: 120 | J23: 25 | O23: immA | P23: 19 | V23: liqM | W23: 50
C24: direkte Kosten | D24: =D22+D23 -> 154 | F24: =F22+F23 -> 90 | H24: =H22+H23 -> 361 | J24: =J22+J23 -> 45
C25: db | D25: =D21-D24 -> 136 | F25: =F21-F24 -> 30 | H25: =H21-H24 -> 99 | J25: =J21-J24 -> 5
C26: Absatzmenge | D26: 4800 | F26: 3100 | H26: 800 | J26: 5200 | V26: Anz | W26: 8
C27: DB | D27: =db_A*abs_A -> 652800 | F27: =db_B*abs_B -> 93000 | H27: =db_C*abs_C -> 79200 | J27: =db_D*abs_D -> 26000 | L27: =SUM(D27:J27)/1000 -> 851
C28: Umsatz | D28: =D21*D26 -> 1392000 | F28: =F21*F26 -> 372000 | H28: =H21*H26 -> 368000 | J28: =J21*J26 -> 260000 | L28: =SUM(D28:J28)/1000 -> 2392

Sheet Simulations_Tabelle (hidden)
C4: 4. Simuationstabelle
C6: Periode t | D6: Kapital C | E6: kp | F6: % Veränd. | G6: Leistung L | H6: Faktor m | I6: Umsatz U | J6: ks | K6: % Veränd. | L6: Kosten K | M6: Gewinn G | N6: ur = | O6: uz = | P6: ROI | Q6: d | R6: ROI-Ziel | S6: Abw.
C7: 0 | D7: 1200 | E7: 3 | G7: 3600 | H7: 1 | I7: 3600 | J7: 94 | L7: 3384 | M7: 216 | N7: 6 | O7: 3 | P7: 18 | Q7: 5.555555556 | R7: 40 | S7: -22
C8: =C7+1 -> 1 | D8: 1200 | E8: 3.039 | F8: 1.3 | G8: 3646.8 | H8: 0.9855769762 | I8: 3594.202117 | J8: 92.59 | K8: 1.5 | L8: 3376.57212 | M8: 217.629997 | N8: 6.055029458 | O8: 2.995168431 | P8: 18.13583308 | Q8: 5.513945765 | R8: 40 | S8: -21.86416692
C9: =C8+1 -> 2 | D9: 1200 | E9: 3.078507 | F9: 1.3 | G9: 3694.2084 | H9: 0.9838657224 | I9: 3634.605016 | J9: 91.20115 | K9: 1.5 | L9: 3369.160544 | M9: 265.444472 | N9: 7.303254985 | O9: 3.028837514 | P9: 22.12037267 | Q9: 4.520719497 | R9: 40 | S9: -17.87962733
C10: 3 | D10: 1200 | E10: 3.118527591 | F10: 1.3 | G10: 3742.233109 | H10: 0.993673251 | I10: 3718.55694 | J10: 89.83313275 | K10: 1.5 | L10: 3361.765237 | M10: 356.7917027 | N10: 9.594896852 | O10: 3.09879745 | P10: 29.73264189 | Q10: 3.363306912 | R10: 40 | S10: -10.26735811
C11: 4 | D11: 1200 | E11: 3.15906845 | F11: 1.3 | G11: 3790.88214 | H11: 1.014658456 | I11: 3846.45062 | J11: 88.48563576 | K11: 1.5 | L11: 3354.386162 | M11: 492.0644582 | N11: 12.79268881 | O11: 3.205375517 | P11: 41.00537152 | Q11: 2.438704889 | R11: 40 | S11: 1.00537152
C12: 5 | D12: 1200 | E12: 3.20013634 | F12: 1.3 | G12: 3840.163607 | H12: 0.9482524464 | I12: 3641.444535 | J12: 87.15835122 | K12: 1.5 | L12: 3347.023284 | M12: 294.4212507 | N12: 8.085287249 | O12: 3.034537113 | P12: 24.53510422 | Q12: 4.075792754 | R12: 40 | S12: -15.46489578
C13: 6 | D13: 1200 | E13: 3.241738112 | F13: 1.3 | G13: 3890.085734 | H13: 0.986899569 | I13: 3839.123935 | J13: 85.85097595 | K13: 1.5 | L13: 3339.676568 | M13: 499.4473663 | N13: 13.00940982 | O13: 3.199269946 | P13: 41.62061386 | Q13: 2.402655577 | R13: 40 | S13: 1.620613862
C14: 7 | D14: 1200 | E14: 3.283880707 | F14: 1.3 | G14: 3940.656849 | H14: 0.9963659921 | I14: 3926.336471 | J14: 84.56321131 | K14: 1.5 | L14: 3332.345978 | M14: 593.9904926 | N14: 15.12836449 | O14: 3.271947059 | P14: 49.49920771 | Q14: 2.020234356 | R14: 40 | S14: 9.499207714
C15: 8 | D15: 1200 | E15: 3.326571157 | F15: 1.3 | G15: 3991.885388 | H15: 0.9645163292 | I15: 3850.238641 | J15: 83.29476315 | K15: 1.5 | L15: 3325.031479 | M15: 525.2071619 | N15: 13.64089894 | O15: 3.208532201 | P15: 43.76726349 | Q15: 2.284812712 | R15: 40 | S15: 3.767263494
C16: 9 | D16: 1200 | E16: 3.369816582 | F16: 1.3 | G16: 4043.779898 | H16: 1.009657527 | I16: 4082.832811 | J16: 82.0453417 | K16: 1.5 | L16: 3317.733035 | M16: 765.0997764 | N16: 18.7394344 | O16: 3.402360676 | P16: 63.7583147 | Q16: 1.568422887 | R16: 40 | S16: 23.7583147
C17: 10 | D17: 1200 | E17: 3.413624197 | F17: 1.3 | G17: 4096.349037 | H17: 0.9492339337 | I17: 3888.39351 | J17: 80.81466157 | K17: 1.5 | L17: 3310.450611 | M17: 577.942899 | N17: 14.86328216 | O17: 3.240327925 | P17: 48.16190825 | Q17: 2.076329689 | R17: 40 | S17: 8.161908252
